Workbook

Sheet 2.1
B1: Table 2.1
B2: Summary of Customers, Energy Sales and Revenues
I4: GRA Forecast
B5: Line No. | D5: Description | E5: 2021 Approved 2 | G5: 2021 Actual | H5: 2022 Actual | I5: 2023 Forecast | J5: 2024 Forecast
B6: 1 | D6: Residential
B7: 2 | D7: Customers | E7: 1779.796727 | G7: 1812.666667 | H7: 1821.833333 | I7: 1858.082081 | J7: 1898.208721
B8: 3 | D8: Sales in MWh | E8: 16209.74587 | G8: 17421.15399 | H8: 17333.62861 | I8: 17692.78405 | J8: 18090.33996
B9: 4 | D9: MWh sales per customer | E9: =E8/E7 -> 9.107638879 | G9: =G8/G7 -> 9.610787416 | H9: =H8/H7 -> 9.514387674 | I9: =I8/I7 -> 9.522068063 | J9: =J8/J7 -> 9.530216442
B10: 5 | D10: Revenue ($000s) | E10: 2384.118869 | G10: 2513.32428 | H10: 2472.14432 | I10: 2531.794466 | J10: 2610.713258
B11: 6 | D11: Cents per KWh | E11: =SUM(E10/E8)*100 -> 14.7079349 | G11: =SUM(G10/G8)*100 -> 14.42685302 | H11: =SUM(H10/H8)*100 -> 14.26212812 | I11: =SUM(I10/I8)*100 -> 14.30975735 | J11: =SUM(J10/J8)*100 -> 14.43153232
B12: 7 | D12: General Service
B13: 8 | D13: Customers | E13: 513.5393844 | G13: 527.8608333 | H13: 519.25 | I13: 528.8210486 | J13: 536.123502
B14: 9 | D14: Sales in MWh | E14: 32322.92676 | G14: 29584.26401 | H14: 30661.73859 | I14: 38568.70916 | J14: 44698.25913
B15: 10 | D15: MWh sales per customer | E15: =E14/E13 -> 62.94147585 | G15: =G14/G13 -> 56.04557516 | H15: =H14/H13 -> 59.05005025 | I15: =I14/I13 -> 72.93338505 | J15: =J14/J13 -> 83.37306416
B16: 11 | D16: Revenue ($000s) | E16: 5388.077926 | G16: 4911.48387 | H16: 5004.85501 | I16: 6271.980312 | J16: 7175.088869
B17: 12 | D17: Cents per KWh | E17: =SUM(E16/E14)*100 -> 16.66952367 | G17: =SUM(G16/G14)*100 -> 16.60167672 | H17: =SUM(H16/H14)*100 -> 16.32280242 | I17: =SUM(I16/I14)*100 -> 16.26183621 | J17: =SUM(J16/J14)*100 -> 16.05227812
B18: 13 | D18: Industrial
B19: 14 | D19: Sales in MWh | E19: 102903.861 | G19: 91143.14 | H19: 95169.2 | I19: 75045.11414 | J19: 69367.81788
B20: 15 | D20: Revenue ($000s) | E20: 11480.77141 | G20: 11128.83362 | H20: 12206.04514 | I20: 9717.706244 | J20: 8771.368761
B21: 16 | D21: Cents per KWh | E21: =IF(E19=0,0,SUM(E20/E19)*100) -> 11.15679363 | G21: =SUM(G20/G19)*100 -> 12.21028112 | H21: =SUM(H20/H19)*100 -> 12.82562546 | I21: =IF(I19=0,0,SUM(I20/I19)*100) -> 12.94915246 | J21: =IF(J19=0,0,SUM(J20/J19)*100) -> 12.64472349
B22: 17 | D22: Street lights
B23: 18 | D23: Sales in MWh | E23: 167.64 | G23: 167.64 | H23: 167.685 | I23: 168.18 | J23: 168.18
B24: 19 | D24: Revenue ($000s) | E24: 81.84144 | G24: 81.84195 | H24: 82.01496 | I24: 82.17253 | J24: 82.17253
B25: 20 | D25: Cents per KWh | E25: =SUM(E24/E23)*100 -> 48.81975662 | G25: =SUM(G24/G23)*100 -> 48.82006084 | H25: 48.91013507 | I25: =SUM(I24/I23)*100 -> 48.85987038 | J25: 48.85987038
B26: 21 | D26: Space lights
B27: 22 | D27: Sales in MWh | E27: 9.804 | G27: 8.98267 | H27: 8.844 | I27: 8.844 | J27: 8.844
B28: 23 | D28: Revenue ($000s) | E28: 2.60508 | G28: 2.44187 | H28: 2.41432 | I28: 2.41437 | J28: 2.41437
B29: 24 | D29: Cents per KWh | E29: =SUM(E28/E27)*100 -> 26.57160343 | G29: =SUM(G28/G27)*100 -> 27.18423364 | H29: =SUM(H28/H27)*100 -> 27.29895975 | I29: =SUM(I28/I27)*100 -> 27.2995251 | J29: =SUM(J28/J27)*100 -> 27.2995251
B30: 25 | D30: Total Company - Firm Retail & Ind.
B31: 26 | D31: Customers | E31: =E7+E13 -> 2293.336111 | G31: =G7+G13 -> 2340.5275 | H31: 2341.083333 | I31: =I7+I13 -> 2386.90313 | J31: 2434.332223
B32: 27 | D32: Sales in MWh | E32: =E8+E14+E19+E23+E27 -> 151613.9776 | G32: =G8+G14+G19+G23+G27 -> 138325.1807 | H32: 143341.0962 | I32: =I8+I14+I19+I23+I27 -> 131483.6313 | J32: 132333.441
B33: 28 | D33: Revenue ($000s) | E33: =E10+E16+E20+E24+E28 -> 19337.41473 | G33: =G10+G16+G20+G24+G28 -> 18637.92559 | H33: =H10+H16+H20+H24+H28 -> 19767.47375 | I33: =I10+I16+I20+I24+I28 -> 18606.06792 | J33: 18641.75779
B34: 29 | D34: Cents per KWh | E34: =SUM(E33/E32)*100 -> 12.75437465 | G34: =SUM(G33/G32)*100 -> 13.47399331 | H34: =SUM(H33/H32)*100 -> 13.79051387 | I34: =SUM(I33/I32)*100 -> 14.15086253 | J34: =SUM(J33/J32)*100 -> 14.08695916
B35: 30 | D35: Wholesale sales
B36: 31 | D36: Sales in MWh | E36: 343537 | G36: 348983.0502 | H36: 346338.6771 | I36: 351291.2261 | J36: 355856.9286
B37: 32 | D37: Revenue ($000s) | E37: 28506.70026 | G37: 28958.61351 | H37: 29169.99942 | I37: 29150.14594 | J37: 29529.00793
B38: 33 | D38: Cents per KWh | E38: =SUM(E37/E36)*100 -> 8.298 | G38: =SUM(G37/G36)*100 -> 8.298 | H38: =SUM(H37/H36)*100 -> 8.422391536 | I38: =SUM(I37/I36)*100 -> 8.298 | J38: =SUM(J37/J36)*100 -> 8.298
B39: 34 | D39: Total Company - Firm
B40: 35 | D40: Sales in MWh | E40: =E32+E36 -> 495150.9776 | G40: =G32+G36 -> 487308.2309 | H40: =H32+H36 -> 489679.7733 | I40: =I32+I36 -> 482774.8574 | J40: 488190.3695
B41: 36 | D41: Revenue ($000s) | E41: =E33+E37 -> 47844.11499 | G41: =G33+G37 -> 47596.53909 | H41: 48937.47318 | I41: =I33+I37 -> 47756.21386 | J41: 48170.76572
B42: 37 | D42: Cents per KWh | E42: =SUM(E41/E40)*100 -> 9.662530652 | G42: =SUM(G41/G40)*100 -> 9.767234796 | H42: =SUM(H41/H40)*100 -> 9.993770592 | I42: =SUM(I41/I40)*100 -> 9.892025885 | J42: =SUM(J41/J40)*100 -> 9.867209336
B43: 38 | D43: Secondary
B44: 39 | D44: Sales in MWh | E44: 0 | G44: 4738.705 | H44: 3448.11 | I44: 2931.185 | J44: 2931.11
B45: 40 | D45: Revenue ($000s) | E45: 0 | G45: 330.1834652 | H45: 364.6751426 | I45: 357.60427 | J45: 357.59542
B46: 41 | D46: Cents per KWh | E46: =IFERROR(SUM(E45/E44)*100,0) -> 0 | G46: =IFERROR(SUM(G45/G44)*100,0) -> 6.96779954 | H46: 10.57608784 | I46: =IFERROR(SUM(I45/I44)*100,0) -> 12.19998977 | J46: 12.2
B47: 42 | D47: Total Company
B48: 43 | D48: Sales in MWh | E48: =E40+E44 -> 495150.9776 | G48: =G40+G44 -> 492046.9359 | H48: =H40+H44 -> 493127.8833 | I48: =I40+I44 -> 485706.0424 | J48: 491121.4795
B49: 44 | D49: Revenue ($000s) | E49: =E41+E45 -> 47844.11499 | G49: 47926.72256 | H49: 49302.14832 | I49: =I41+I45 -> 48113.81813 | J49: 48528.36114
B50: 45 | D50: Cents per KWh | E50: =IFERROR(SUM(E49/E48)*100,0) -> 9.662530652 | G50: =IFERROR(SUM(G49/G48)*100,0) -> 9.740274568 | H50: 9.997842343 | I50: =IFERROR(SUM(I49/I48)*100,0) -> 9.905954205 | J50: 9.881131892
B52: 46 | D52: Rider J ($000s) before 2023/24 GRA | E52: 25036.06056 | G52: 19429.9997 | H52: 26347.72468 | I52: 26264.75872 | J52: 26182.50542
B54: 47 | D54: Total Sales Revenues1 | E54: =E49+E52 -> 72880.17555 | G54: =G49+G52 -> 67356.72226 | H54: =H49+H52 -> 75649.873 | I54: =I49+I52 -> 74378.57685 | J54: =J49+J52 -> 74710.86656
B56: 48 | D56: Total Sales Revenues excluding secondary sales | E56: =E54-E45 -> 72880.17555 | G56: =G54-G45 -> 67026.53879 | H56: =H54-H45 -> 75285.19786 | I56: =I54-I45 -> 74020.97258 | J56: =J54-J45 -> 74353.27114
D58: Note:
D59: 1. Excludes revenues from other revenues.
D60: 2. Reflects 2021 GRA Compliance Filing for YUB Order 2022-07 with revised Rider J as per YUB Order 2023-01.

Sheet 2.2
B1: Table 2.2
B2: Summary of Energy Balance, Losses, Peak and Load Factor
I5: GRA Forecast
B6: Line No. | D6: Description | E6: 2021 Approved | G6: 2021 Actual | H6: 2022 Actual | I6: 2023 Forecast | J6: 2024 Forecast
D7: Sales and Losses
B8: 1 | D8: Total Energy Sales | E8: ='2.1'!E48 -> 495150.9776 | G8: ='2.1'!G48 -> 492046.9359 | H8: ='2.1'!H48 -> 493127.8833 | I8: ='2.1'!I48 -> 485706.0424 | J8: ='2.1'!J48 -> 491121.4795
B9: 2 | D9: Losses - MWh | E9: =E11-E8 -> 43575.10603 | G9: =G11-G8 -> 41325.56056 | H9: =H11-H8 -> 44361.54754 | I9: =I11-I8 -> 42937.90792 | J9: =J11-J8 -> 43218.6902
B10: 3 | D10: Losses - % | E10: =E9/E8 -> 0.08800367565 | G10: =G9/G8 -> 0.08398702958 | H10: =H9/H8 -> 0.08995951972 | I10: =I9/I8 -> 0.08840307546 | J10: =J9/J8 -> 0.088
B11: 4 | D11: Total Generation | E11: 538726.0837 | G11: =G25+G27+G37+G39 -> 533372.4964 | H11: =H25+H27+H37+H39+H28 -> 537489.4308 | I11: =I25+I27+I37+I39+I28 -> 528643.9503 | J11: =J25+J27+J37+J39+J28 -> 534340.1697
B13: 5 | D13: Secondary Sales Related Generation | E13: ='2.1'!E44*(1+E10) -> 0 | G13: 5106.213439 | H13: 3745.299961 | I13: ='2.1'!I44*(1+I10) -> 3190.310769 | J13: ='2.1'!J44*(1+J10) -> 3189.04768
B15: 6 | D15: Firm Load Generation | E15: =E11-E13 -> 538726.0837 | G15: =G11-G13 -> 528266.283 | H15: =H11-H13 -> 533744.1308 | I15: =I11-I13 -> 525453.6395 | J15: =J11-J13 -> 531151.122
D17: Actual Generation - MWh
D19: Hydro Generation
B21: 7 | D21: Whitehorse | E21: 259116.2413 | G21: 226420.3065 | H21: 219079.12 | I21: 280501.5862 | J21: 261359.0095
B22: 8 | D22: Aishihik | E22: =E25-E21-E23 -> 178145.6092 | G22: 192320.487 | H22: 192145.957 | I22: 130160.7284 | J22: 125639.3114
B23: 9 | D23: Mayo | E23: 71201.35518 | G23: 74497.90259 | H23: 80914.0575 | I23: 71594.54375 | J23: 73894.86
B25: 10 | D25: Total Hydro | E25: =E11-E27-E28-E37-E39 -> 508463.2057 | G25: =G21+G22+G23 -> 493238.6961 | H25: =H21+H22+H23 -> 492139.1345 | I25: =I21+I22+I23 -> 482256.8583 | J25: =J21+J22+J23 -> 460893.1809
B27: 11 | D27: Wind Turbine | E27: 0 | G27: 0 | H27: 0 | I27: 0 | J27: 0
B28: 12 | D28: IPPs | E28: =G28 -> 2.455983 | G28: 2.455983 | H28: 1952.167395 | I28: 6102.408785 | J28: 16810.50652
D30: Diesel Generation1
B32: =B28+1 -> 13 | D32: Whitehorse | E32: 1869.796516 | G32: 14505.01 | H32: 8405.341 | I32: 5404.767717 | J32: 7922.732777
B33: =B32+1 -> 14 | D33: Faro | E33: 237.1390368 | G33: 2207.86734 | H33: 6318.7039 | I33: 1779.970362 | J33: 2029.175348
B34: =B33+1 -> 15 | D34: Dawson | E34: 822.9684445 | G34: 1798.201 | H34: 2937.824 | I34: 987.2629213 | J34: 1668.763468
B35: =B34+1 -> 16 | D35: Mayo | E35: 21.11209372 | G35: 77.322 | H35: 183.96 | I35: 95.25663515 | J35: 183.043867
B37: =B35+1 -> 17 | D37: Total Diesel | E37: =SUM(E32:E36) -> 2951.016091 | G37: =SUM(G32:G35) -> 18588.40034 | H37: =SUM(H32:H35) -> 17845.8289 | I37: =SUM(I32:I35) -> 8267.257635 | J37: =SUM(J32:J35) -> 11803.71546
B39: =B37+1 -> 18 | D39: LNG Generation1 | E39: 27309.40591 | G39: 21545.4 | H39: 25552.3 | I39: 32017.42562 | J39: 44832.7668
B41: =B39+1 -> 19 | D41: Total Thermal1 | E41: =E37+E39 -> 30260.422 | G41: =G37+G39 -> 40133.80034 | H41: =H37+H39 -> 43398.1289 | I41: =I37+I39 -> 40284.68325 | J41: =J37+J39 -> 56636.48226
D43: Source - %
B45: =B41+1 -> 20 | D45: Hydro Generation | E45: =E25/E11 -> 0.9438251109 | G45: =G25/G11 -> 0.9247546497 | H45: =H25/H11 -> 0.9156256966 | I45: =I25/I11 -> 0.9122526759 | J45: =J25/J11 -> 0.8625463835
B47: =B45+1 -> 21 | D47: LNG Generation | E47: =E39/E11 -> 0.05069256295 | G47: =G39/G11 -> 0.04039465879 | H47: =H39/H11 -> 0.0475400976 | I47: =I39/I11 -> 0.06056519818 | J47: =J39/J11 -> 0.08390304405
B49: =B47+1 -> 22 | D49: Diesel Generation | E49: =E37/E11 -> 0.005477767237 | G49: =G37/G11 -> 0.03485069152 | H49: =H37/H11 -> 0.03320219502 | I49: =I37/I11 -> 0.01563861202 | J49: =J37/J11 -> 0.02209026408
B51: =B49+1 -> 23 | D51: IPP Generation | E51: =E27/E11 -> 0 | G51: =G27/G11 -> 0 | H51: =H28/H11 -> 0.003632010758 | I51: =I28/I11 -> 0.01154351389 | J51: =J28/J11 -> 0.03146030838
D53: LTA Generation - MWh
B55: =B51+1 -> 24 | D55: LTA Hydro Generation | E55: =E15-E56-E58 -> 452796.1992 | G55: =G15-G56-G58 -> 449960.283 | H55: =H15-H56-H58-H57 -> 453157.4589 | I55: =I15-I56-I58-I57 -> 444871.2308 | J55: =J15-J56-J58-J57 -> 446245.6155
B56: =B55+1 -> 25 | D56: LTA Wind Generation | E56: 0 | G56: 0 | H56: 0 | I56: 0 | J56: 0
B57: =B56+1 -> 26 | D57: IPP Generation | E57: =E28 -> 2.455983 | G57: =G28 -> 2.455983 | H57: =H28 -> 1952.167395 | I57: =I28 -> 6102.408785 | J57: =J28 -> 16810.50652
B58: =B57+1 -> 27 | D58: LTA Thermal Generation | E58: 85929.88448 | G58: 78306 | H58: 78634.5045 | I58: 74480 | J58: 68095
B59: 28 | D59: Total LTA Generation | E59: =SUM(E55:E58) -> 538728.5396 | G59: =SUM(G55:G58) -> 528268.739 | H59: =SUM(H55:H58) -> 533744.1308 | I59: =SUM(I55:I58) -> 525453.6395 | J59: 531151.122
D61: Peak - MW2
B63: =B59+1 -> 29 | D63: Integrated System | E63: 112.689 | G63: 104.42 | H63: 114.21 | I63: 119.47 | J63: 123.222
C65: Notes:
C66: 1 | D66: Actual thermal generation reflects actual generation required for maintenance, capital, RFID and all other generation, e.g., peaking. Forecast Actual Generation includes peaking, maintenance and capital requirements reflecting short-term hydro generation forecasts.
C67: 2 | D67: Peak load is a one-hour maximum load on the grid forecast to occur in December (forecasts assume weather normalized temperature) and includes industrial peak.
